bitfinex/quotes_BTCUSD_20250529
["timestamp","ask_amount","ask_price","bid_price","bid_amount"]
[1748543882351,0.20680225,106390.0,106380.0,0.0426079]
[1748543883043,0.20680225,106390.0,106380.0,0.04260742]
[1748543883472,0.20680225,106390.0,106380.0,0.04360742]
[1748543885250,0.2213431,106390.0,106380.0,0.04360742]
[1748543885475,0.31239705,106390.0,106380.0,0.02490742]
[1748543887244,0.31239705,106390.0,106380.0,0.0219]
[1748543887465,0.31239705,106390.0,106380.0,0.04420757]
[1748543887681,0.31239705,106390.0,106380.0,0.0412]
[1748543887905,0.31239705,106390.0,106380.0,0.04420753]
[1748543888803,0.31239705,106390.0,106380.0,0.0412]
[1748543889267,0.20680225,106390.0,106380.0,0.0412]
[1748543889477,0.51868225,106390.0,106380.0,0.04420751]
[1748543890147,0.20680225,106390.0,106380.0,0.04420751]
[1748543890851,0.20680225,106390.0,106380.0,0.0412]
[1748543891281,0.20669317,106390.0,106380.0,0.0412]
[1748543892192,0.20669317,106390.0,106380.0,0.003]
[1748543892193,0.93574389,106390.0,106380.0,0.003]
[1748543892414,0.95544389,106390.0,106380.0,0.003]
[1748543893097,0.93574389,106390.0,106380.0,0.003]
[1748543893813,0.33278797,106390.0,106380.0,0.003]
[1748543895673,0.64438797,106390.0,106380.0,0.003]
[1748543899185,0.64938797,106390.0,106380.0,0.003]
[1748543899403,0.31728797,106390.0,106380.0,0.003]
[1748543899621,0.62796797,106390.0,106380.0,0.003]
[1748543900075,1.27056753,106390.0,106380.0,0.003]
[1748543901883,1.27036753,106390.0,106380.0,0.003]
[1748543903401,1.27036753,106390.0,106380.0,0.0231]
[1748543903894,1.27036753,106390.0,106380.0,0.003]
[1748543904114,1.27012753,106390.0,106380.0,0.003]
[1748543904988,0.31728797,106390.0,106380.0,0.0427]
[1748543905222,0.62736797,106390.0,106380.0,0.04570781]
[1748543905432,0.31728797,106390.0,106380.0,0.04570781]
[1748543905643,0.62732797,106390.0,106380.0,0.04570781]
[1748543905863,0.31728797,106390.0,106380.0,0.04570781]
[1748543906071,0.52185317,106390.0,106380.0,0.04570781]
[1748543906295,0.53639402,106390.0,106380.0,0.04570781]
[1748543907368,0.53631402,106390.0,106380.0,0.04570781]
[1748543907584,0.21169317,106390.0,106380.0,0.04570781]
[1748543908463,0.21169317,106390.0,106380.0,0.04868414]
[1748543908939,0.21169317,106390.0,106380.0,0.04570742]
[1748543909161,0.95988753,106390.0,106380.0,0.02610742]
[1748543909398,0.95988753,106390.0,106380.0,0.00600742]
[1748543909399,0.97988753,106390.0,106380.0,0.00600742]
[1748543909619,0.99978753,106390.0,106380.0,0.00600742]
[1748543909856,0.99978753,106390.0,106380.0,0.003]
[1748543910322,1.33978753,106390.0,106380.0,0.003]
[1748543910583,1.44182753,106390.0,106380.0,0.003]
[1748543911052,1.44182753,106390.0,106380.0,0.005019]
[1748543914366,1.45084703,106390.0,106380.0,0.005019]
[1748543916130,1.44182753,106390.0,106380.0,0.005019]
[1748543917747,1.45069174,106390.0,106380.0,0.005019]
[1748543917969,1.43079174,106390.0,106380.0,0.005019]
[1748543918192,1.45009174,106390.0,106380.0,0.005019]
[1748543919070,1.93799174,106390.0,106380.0,0.005019]
[1748543920695,1.96621274,106390.0,106380.0,0.005019]
[1748543921409,1.96621274,106390.0,106380.0,0.004019]
[1748543921612,1.96621274,106390.0,106380.0,0.002019]
[1748543922058,1.47831274,106390.0,106380.0,0.002019]
[1748543923188,1.48131274,106390.0,106380.0,0.002019]
[1748543924619,1.48431274,106390.0,106380.0,0.002019]
[1748543925549,1.79355274,106390.0,106380.0,0.002019]
[1748543929131,1.80355274,106390.0,106380.0,0.002019]
[1748543929984,1.79468853,106390.0,106380.0,0.002019]
[1748543933012,1.80388331,106390.0,106380.0,0.002019]
[1748543933865,1.86463672,106390.0,106380.0,0.002019]
[1748543934094,0.22138489,106360.0,106350.0,0.03974764]
[1748543934344,1.2635584,106360.0,106350.0,0.03974764]
[1748543935201,1.2635584,106360.0,106350.0,0.04174764]
[1748543935670,1.2635584,106360.0,106350.0,0.04274764]
[1748543936116,0.31243884,106360.0,106350.0,0.04274764]
[1748543936328,1.2633184,106360.0,106350.0,0.06164764]
[1748543938958,1.2633184,106360.0,106350.0,0.04274764]
[1748543940759,1.2633184,106360.0,106350.0,0.02324764]
[1748543940978,1.2834184,106360.0,106350.0,0.02324764]
[1748543941420,2.77441796,106360.0,106350.0,0.02324764]
[1748543942334,2.78441796,106360.0,106350.0,0.02324764]
[1748543942983,2.78441796,106360.0,106350.0,0.02224764]
[1748543943206,2.78441796,106360.0,106350.0,0.02024764]
[1748543943732,2.80466596,106360.0,106350.0,0.02024764]
[1748543943959,2.49938596,106360.0,106350.0,0.02024764]
[1748543944189,2.90710596,106360.0,106350.0,0.02024764]
[1748543944407,2.91010596,106360.0,106350.0,0.02024764]
[1748543945941,2.42220596,106360.0,106350.0,0.02024764]
[1748543947309,1.3413864,106360.0,106350.0,0.02024764]
[1748543947524,1.3413864,106360.0,106350.0,0.03964764]
[1748543947525,1.7283264,106360.0,106350.0,0.03964764]
[1748543948161,0.32414599,106360.0,106350.0,0.05834764]
[1748543948670,0.23309204,106360.0,106350.0,0.05834764]
[1748543948885,0.23309204,106360.0,106350.0,0.06135616]
[1748543948886,0.21284404,106360.0,106350.0,0.06135616]
[1748543949319,0.20684404,106360.0,106350.0,0.06135616]
[1748543949741,0.20884404,106360.0,106350.0,0.06135616]
[1748543949987,0.20684404,106360.0,106350.0,0.06135616]
[1748543950198,0.20784404,106360.0,106350.0,0.06135616]
[1748543950629,0.20684404,106360.0,106350.0,0.06135616]
[1748543956116,0.20684404,106360.0,106350.0,0.05834764]
[1748543956357,0.20684404,106360.0,106350.0,0.06135602]
[1748543957747,0.25684351,106360.0,106350.0,0.99945669]
[1748543957981,0.25684351,106360.0,106350.0,0.80496901]
[1748543957982,0.24744255,106360.0,106350.0,0.80496901]
[1748543958195,0.24744255,106360.0,106350.0,0.56236917]
[1748543958408,0.24744255,106360.0,106350.0,0.75042746]
[1748543958661,0.24744255,106360.0,106350.0,0.56236917]
[1748543959071,0.24744255,106360.0,106350.0,0.56436917]
[1748543959712,0.24744255,106360.0,106350.0,0.46632917]
[1748543959928,0.84004211,106360.0,106350.0,0.06335566]
[1748543960136,0.19744255,106360.0,106350.0,0.06435566]
[1748543962197,0.84004211,106360.0,106350.0,0.06435566]
[1748543962418,0.84004211,106360.0,106350.0,0.06435603]
[1748543963753,1.14464211,106360.0,106350.0,0.04565603]
[1748543963968,1.25023691,106360.0,106350.0,0.04565603]
[1748543964188,1.25023691,106360.0,106350.0,0.04264764]
[1748543964417,0.50204255,106360.0,106350.0,0.06224764]
[1748543964631,0.50204255,106360.0,106350.0,0.06525613]
[1748543965058,0.24744255,106360.0,106350.0,0.70785569]
[1748543965281,0.20684458,106360.0,106350.0,1.00335671]
[1748543965497,0.21624625,106360.0,106350.0,0.80589569]
[1748543965783,0.20684458,106360.0,106350.0,0.16329613]
[1748543965994,0.20684458,106360.0,106350.0,0.16626776]
[1748543966411,0.20684458,106360.0,106350.0,0.16028764]
[1748543966633,0.20684458,106360.0,106350.0,0.16329572]
[1748543967379,0.84944414,106360.0,106350.0,0.06525572]
[1748543967817,0.20684458,106360.0,106350.0,0.06525572]
[1748543968309,0.20670448,106360.0,106350.0,0.06525572]
[1748543968739,0.20670448,106360.0,106350.0,0.04565572]
[1748543969173,0.51126448,106360.0,106350.0,0.04565572]
[1748543970262,0.51126448,106360.0,106350.0,0.06595572]
[1748543970700,0.20670448,106360.0,106350.0,0.06595572]
[1748543975127,0.20670448,106360.0,106350.0,0.06595598]
[1748543977679,0.20670448,106360.0,106350.0,0.06892949]
[1748543979277,0.20670448,106360.0,106350.0,0.0689354]
[1748543979954,0.20670448,106360.0,106350.0,0.71388547]
[1748543980173,0.20670448,106360.0,106350.0,0.71153496]
[1748543980401,0.20670448,106360.0,106350.0,0.7154862]
[1748543980622,0.20670448,106360.0,106350.0,0.07288664]
[1748543981563,0.20670448,106360.0,106350.0,0.0689354]
[1748543981786,0.51122448,106360.0,106350.0,0.0689354]
[1748543983541,0.51122448,106360.0,106350.0,0.06893544]
[1748543985035,0.20670448,106360.0,106350.0,0.06893544]
[1748543987130,0.51122448,106360.0,106350.0,0.06893544]
[1748543987374,0.20670448,106360.0,106350.0,0.06893544]
[1748543987841,0.20670448,106360.0,106350.0,0.06893568]
[1748543992283,0.20670448,106360.0,106350.0,0.04863649]
[1748543992709,0.19670448,106360.0,106350.0,0.04863649]
[1748543992968,0.19656438,106360.0,106350.0,0.04863649]
[1748543993648,0.19656438,106360.0,106350.0,0.06693649]
[1748543994380,0.19656438,106360.0,106350.0,0.04363649]
[1748543994819,0.19656438,106360.0,106350.0,0.06383649]
[1748543996105,0.19656438,106360.0,106350.0,0.04363649]
[1748543996534,0.19656438,106360.0,106350.0,0.04363702]
[1748543997200,0.19656438,106360.0,106350.0,0.02423702]
[1748543997201,0.83916394,106360.0,106350.0,0.02423702]
[1748543997406,0.85936394,106360.0,106350.0,0.02423702]
[1748543998319,0.83916394,106360.0,106350.0,0.04253702]
[1748543999402,0.83916394,106360.0,106350.0,0.02423702]
[1748543999892,0.83916394,106360.0,106350.0,0.04253702]
[1748544000102,0.83916394,106360.0,106350.0,0.02423702]
[1748544000762,0.83905887,106360.0,106350.0,0.02423725]
[1748544001443,0.83905887,106360.0,106350.0,0.02125609]
[1748544003609,0.83905887,106360.0,106350.0,0.02125614]
[1748544003859,0.98235367,106360.0,106350.0,0.02125614]
[1748544004091,1.32235367,106360.0,106350.0,0.02125614]
[1748544004345,1.32235367,106360.0,106350.0,0.01824764]
[1748544005492,1.96495323,106360.0,106350.0,0.01824764]
[1748544006154,1.32235367,106360.0,106350.0,0.01824764]
[1748544006373,1.96495323,106360.0,106350.0,0.01824764]
[1748544006580,1.96495323,106360.0,106350.0,0.01624764]
[1748544007707,1.96495323,106360.0,106350.0,0.01524764]
[1748544008646,0.19645931,106360.0,106350.0,0.6770472]
[1748544008881,0.19645931,106360.0,106350.0,0.69885585]
[1748544009104,0.19645931,106360.0,106350.0,0.05625629]
[1748544009833,0.19645931,106360.0,106350.0,0.05923719]
[1748544010048,0.19645931,106360.0,106350.0,0.07681581]
[1748544011187,0.19645931,106360.0,106350.0,0.07681613]
[1748544011638,0.19645931,106360.0,106350.0,0.076816]
[1748544012133,0.83905887,106360.0,106350.0,0.0358351]
[1748544012354,0.96445367,106360.0,106350.0,0.03583651]
[1748544012572,0.96445367,106360.0,106350.0,0.03283019]
[1748544013103,1.96585323,106360.0,106350.0,0.01524764]
[1748544013753,2.45375323,106360.0,106350.0,0.01524764]
[1748544013968,1.77157369,106360.0,106350.0,0.01524764]
[1748544014637,2.17369369,106360.0,106350.0,0.01524764]
[1748544016567,1.57067411,106360.0,106350.0,0.01524764]
[1748544016798,2.17369369,106360.0,106350.0,0.01524764]
[1748544017817,2.17357861,106360.0,106350.0,0.01524764]
[1748544021804,2.17347861,106360.0,106350.0,0.01524764]
[1748544025701,1.68557861,106360.0,106350.0,0.01524764]
[1748544026246,1.78441861,106360.0,106350.0,0.01524764]
[1748544026495,1.68557861,106360.0,106350.0,0.01524764]
[1748544032708,1.38129861,106360.0,106350.0,0.01524764]
[1748544032940,1.68541861,106360.0,106350.0,0.01524764]
[1748544034164,2.36901957,106360.0,106350.0,0.01524764]
[1748544036250,2.06489957,106360.0,106350.0,0.01524764]
[1748544036480,2.36893957,106360.0,106350.0,0.01524764]
[1748544036713,1.08231903,106360.0,106350.0,0.01524764]
[1748544036949,2.36893957,106360.0,106350.0,0.01524764]
[1748544037177,1.08231903,106360.0,106350.0,0.01524764]
[1748544037402,2.36893957,106360.0,106350.0,0.01524764]
[1748544039271,1.96705957,106360.0,106350.0,0.01524764]
[1748544039497,1.7066693,106360.0,106350.0,0.01524764]
[1748544039733,2.34997957,106360.0,106350.0,0.01524764]
[1748544039962,2.36997957,106360.0,106350.0,0.01524764]
[1748544048017,2.37997957,106360.0,106350.0,0.01524764]
[1748544048218,2.42997957,106360.0,106350.0,0.01524764]
[1748544049581,2.43097957,106360.0,106350.0,0.01524764]
[1748544050512,2.43297957,106360.0,106350.0,0.01524764]
[1748544053549,0.70483903,106360.0,106350.0,0.01524764]
[1748544053790,0.29029818,106360.0,106350.0,0.05284764]
[1748544054054,0.29029818,106360.0,106350.0,0.07346616]
[1748544054517,0.63029818,106360.0,106350.0,0.07345184]
[1748544054750,0.64483903,106360.0,106350.0,0.07345186]
[1748544054975,0.29029818,106360.0,106350.0,0.07345186]
[1748544055195,0.30483903,106360.0,106350.0,0.07345169]
[1748544055408,0.64383903,106360.0,106350.0,0.07345169]
[1748544055645,0.64383903,106360.0,106350.0,0.05585623]
[1748544055881,0.64183903,106360.0,106350.0,0.07344251]
[1748544057267,0.64183903,106360.0,106350.0,0.07343531]
[1748544057729,0.64183903,106360.0,106350.0,0.07342943]
[1748544058472,0.94551903,106360.0,106350.0,0.07041592]
[1748544058693,0.94551903,106360.0,106350.0,0.07041593]
[1748544059163,0.94551903,106360.0,106350.0,0.05284764]
[1748544059389,1.5888293,106360.0,106350.0,0.05284764]
[1748544061781,0.64183903,106360.0,106350.0,0.05284764]
[1748544062005,0.94543903,106360.0,106350.0,0.05284764]
[1748544064063,1.5887493,106360.0,106350.0,0.05284764]
[1748544064789,1.5887493,106360.0,106350.0,0.03464764]
[1748544067096,2.0766493,106360.0,106350.0,0.03464764]
[1748544067339,2.0766493,106360.0,106350.0,0.01524764]
[1748544067562,2.71995957,106360.0,106350.0,0.01524764]
[1748544068025,2.73915957,106360.0,106350.0,0.01524764]
[1748544068474,2.0766493,106360.0,106350.0,0.01524764]
[1748544068710,2.1739693,106360.0,106350.0,0.03464764]
[1748544076585,2.1739693,106360.0,106350.0,0.01524764]
[1748544076819,2.81727957,106360.0,106350.0,0.01524764]
[1748544077044,2.85437957,106360.0,106350.0,0.01524764]
[1748544077271,2.88034656,106360.0,106350.0,0.01524764]
[1748544077662,2.85437957,106360.0,106350.0,0.01524764]
[1748544078480,2.85737957,106360.0,106350.0,0.01524764]
[1748544078947,2.36947957,106360.0,106350.0,0.01524764]
[1748544080351,1.08265903,106360.0,106350.0,0.01524764]
[1748544080575,2.36927957,106360.0,106350.0,0.01524764]
[1748544081247,2.36987957,106360.0,106350.0,0.01524764]
[1748544084177,1.94995957,106360.0,106350.0,0.01524764]
[1748544084265,2.35031957,106360.0,106350.0,0.01524764]
[1748544084488,1.94995957,106360.0,106350.0,0.01524764]
[1748544084712,2.35027957,106360.0,106350.0,0.01524764]
[1748544084939,1.7069693,106360.0,106350.0,0.01524764]
[1748544085171,1.6884693,106360.0,106350.0,0.01524764]
[1748544085444,1.6884693,106360.0,106350.0,0.03494764]
[1748544086126,1.6884693,106360.0,106350.0,0.01524764]
[1748544086127,1.2881493,106360.0,106350.0,0.01524764]
[1748544086354,1.6885093,106360.0,106350.0,0.01524764]
[1748544086839,2.33181957,106360.0,106350.0,0.01524764]
[1748544087099,2.35141957,106360.0,106350.0,0.01524764]
[1748544087568,1.06479903,106360.0,106350.0,0.01524764]
[1748544087816,2.35141957,106360.0,106350.0,0.01524764]
[1748544089465,2.37111957,106360.0,106350.0,0.01524764]
[1748544091136,2.38030696,106360.0,106350.0,0.01524764]
[1748544092071,2.41060696,106360.0,106350.0,0.01524764]
[1748544095550,2.39100696,106360.0,106350.0,0.01524764]
[1748544095984,2.39100696,106360.0,106350.0,0.03434764]
[1748544096432,2.39100696,106360.0,106350.0,0.01524764]
[1748544097122,2.39080696,106360.0,106350.0,0.03484764]
[1748544097343,1.99064696,106360.0,106350.0,0.03484764]
[1748544097561,2.39080696,106360.0,106350.0,0.03484764]
[1748544097792,2.34080696,106360.0,106350.0,0.03484764]
[1748544100230,1.69745669,106360.0,106350.0,0.03484764]
[1748544102927,2.36046696,106360.0,106350.0,0.01524764]
[1748544103150,2.38006696,106360.0,106350.0,0.01524764]
[1748544103383,0.55202045,106340.0,106330.0,0.0390824]
[1748544103609,1.38354467,106340.0,106330.0,0.0007301]
[1748544103830,1.40234467,106340.0,106330.0,0.0007301]
[1748544104544,1.40234467,106340.0,106330.0,0.0027301]
[1748544105030,1.40234467,106340.0,106330.0,0.0007301]
[1748544108003,1.42234467,106340.0,106330.0,0.0007301]
[1748544108242,0.34,106320.0,106310.0,0.0201]
[1748544108480,2.31515124,106320.0,106310.0,0.0197]
[1748544108728,2.32969209,106320.0,106310.0,0.0197]
[1748544109179,2.32969209,106320.0,106310.0,0.01479229]
[1748544109404,1.68638182,106320.0,106310.0,0.01479229]
[1748544109904,1.68638182,106320.0,106310.0,0.001]
[1748544111046,2.32969209,106320.0,106310.0,0.001]
[1748544111276,1.68638182,106320.0,106310.0,0.001]
[1748544112254,1.68638182,106320.0,106310.0,0.0209]
[1748544112749,1.04307155,106320.0,106310.0,0.0209]
[1748544112979,1.04307155,106320.0,106310.0,0.0397]
[1748544112980,1.28642182,106320.0,106310.0,0.0397]
[1748544113224,1.68594182,106320.0,106310.0,0.0397]
[1748544114393,1.68594182,106320.0,106310.0,0.0209]
[1748544115071,1.68594182,106320.0,106310.0,0.001]
[1748544115289,1.68594182,106320.0,106310.0,0.021]
[1748544116206,1.68594182,106320.0,106310.0,0.0405]
[1748544117400,2.37785209,106320.0,106310.0,0.001]
[1748544117620,1.10947355,106320.0,106310.0,0.001]
[1748544117845,1.04255155,106320.0,106310.0,0.001]
[1748544118079,0.21207617,106310.0,106300.0,0.5388]
[1748544118312,0.94644039,106310.0,106300.0,0.5388]
[1748544118779,0.94644039,106310.0,106300.0,0.5001]
[1748544119010,0.98504039,106310.0,106300.0,0.5001]
[1748544120351,1.32504039,106310.0,106300.0,0.5001]
[1748544120578,1.32804039,106310.0,106300.0,0.5001]
[1748544120808,1.30834039,106310.0,106300.0,0.5001]
[1748544121281,1.29144039,106310.0,106300.0,0.5001]
[1748544121541,1.29144039,106310.0,106300.0,0.5191]
[1748544121773,1.69088039,106310.0,106300.0,0.5191]
[1748544122711,0.63358927,106310.0,106300.0,0.5191]
[1748544122934,1.67629954,106310.0,106300.0,0.5384]
[1748544123149,1.69084039,106310.0,106300.0,0.5384]
[1748544123370,2.17874039,106310.0,106300.0,0.5191]
[1748544124761,2.17874039,106310.0,106300.0,0.5001]
[1748544125005,2.21764039,106310.0,106300.0,0.5001]
[1748544125892,1.72974039,106310.0,106300.0,0.5001]
[1748544127984,0.19766548,106240.0,106230.0,0.09980735]
[1748544128204,0.17878426,106230.0,106220.0,0.85052659]
[1748544128444,0.00941247,106240.0,106230.0,0.30493735]
[1748544128680,0.20707804,106240.0,106230.0,1.06050684]
[1748544128910,0.21649024,106240.0,106230.0,0.3983698]
[1748544129203,0.21649024,106240.0,106230.0,1.04168005]
[1748544129431,0.21649024,106240.0,106230.0,1.0515802]
[1748544129660,0.21649024,106240.0,106230.0,1.4515802]
[1748544129890,0.20707804,106240.0,106230.0,0.60117443]
[1748544130114,0.20807804,106240.0,106230.0,1.2524847]
[1748544130353,0.19866557,106240.0,106230.0,0.60917452]
[1748544130582,0.19866557,106240.0,106230.0,1.16143084]
[1748544130811,0.19866557,106240.0,106230.0,1.16943084]
[1748544131046,0.19866557,106240.0,106230.0,1.20733084]
[1748544131769,0.19866557,106240.0,106230.0,1.20732855]
[1748544132022,0.19866557,106240.0,106230.0,0.56402127]
[1748544132258,0.19866557,106240.0,106230.0,1.1985513]
[1748544132494,0.19866557,106240.0,106230.0,1.50977151]
[1748544132713,0.19866557,106240.0,106230.0,1.50977152]
[1748544133168,0.19866557,106240.0,106230.0,0.85768097]
[1748544133385,0.19866557,106240.0,106230.0,0.86646125]
[1748544133605,0.19866557,106240.0,106230.0,0.85768097]
[1748544134692,0.19866557,106240.0,106230.0,0.86646326]
[1748544134905,0.19866557,106240.0,106230.0,0.85768097]
[1748544135115,0.19866557,106240.0,106230.0,1.5097746]
[1748544135328,0.19866557,106240.0,106230.0,1.50099124]
[1748544136043,0.19866557,106240.0,106230.0,0.55524097]
[1748544136259,0.24866557,106240.0,106230.0,0.45840097]
[1748544136481,0.24866557,106240.0,106230.0,0.71049593]
[1748544136713,0.24866557,106240.0,106230.0,0.70171134]
[1748544136961,0.24866557,106240.0,106230.0,0.45840107]
[1748544137184,0.24766557,106240.0,106230.0,0.45040107]
[1748544137405,0.24766557,106240.0,106230.0,0.4511889]
[1748544137621,0.24766557,106240.0,106230.0,0.44240107]
[1748544137838,0.24766557,106240.0,106230.0,0.44840107]
[1748544138077,0.24866557,106240.0,106230.0,0.45440107]
[1748544139175,0.24866557,106240.0,106230.0,0.46318952]
[1748544139512,0.24866557,106240.0,106230.0,0.45440107]
[1748544139642,0.24866557,106240.0,106230.0,0.46318955]
[1748544139867,0.24866557,106240.0,106230.0,0.45440107]
[1748544140095,0.24866557,106240.0,106230.0,0.07197815]
[1748544140328,1.24993064,106240.0,106230.0,0.02528961]
[1748544140559,0.94662037,106240.0,106230.0,0.02528961]
[1748544140796,0.94662037,106240.0,106230.0,0.03106848]
[1748544141009,0.94662037,106240.0,106230.0,0.01627824]
[1748544141449,0.94662037,106240.0,106230.0,0.02127824]
[1748544141668,0.94662037,106240.0,106230.0,0.01627824]
[1748544142128,0.94662037,106240.0,106230.0,0.01827824]
[1748544142369,0.94562037,106240.0,106230.0,0.01227824]
[1748544142593,0.94662037,106240.0,106230.0,0.02706993]
[1748544142815,0.94662037,106240.0,106230.0,0.01827824]
[1748544143034,0.94662037,106240.0,106230.0,0.02706005]
[1748544143523,0.94562037,106240.0,106230.0,0.02106006]
[1748544143737,0.94562037,106240.0,106230.0,0.01527824]
[1748544143963,0.64272037,106240.0,106230.0,0.01527824]
[1748544144188,0.64272037,106240.0,106230.0,0.01427824]
[1748544144396,0.98272037,106240.0,106230.0,0.01427824]
[1748544145708,1.72259064,106240.0,106230.0,0.01427824]
[1748544146181,1.32367064,106240.0,106230.0,0.01427824]
[1748544146401,1.72251064,106240.0,106230.0,0.01427824]
[1748544148005,1.07920037,106240.0,106230.0,0.01427824]
[1748544148221,1.72251064,106240.0,106230.0,0.01427824]
[1748544150196,1.32367064,106240.0,106230.0,0.01427824]
[1748544150406,0.94550037,106240.0,106230.0,0.01427824]
[1748544151120,0.64326037,106240.0,106230.0,0.01427824]
[1748544151331,0.94550037,106240.0,106230.0,0.01427824]
[1748544152428,0.64326037,106240.0,106230.0,0.01427824]
[1748544152651,0.94546037,106240.0,106230.0,0.01427824]
[1748544156193,0.96446037,106240.0,106230.0,0.01427824]
[1748544156411,0.98436037,106240.0,106230.0,0.01427824]
[1748544156629,1.62767064,106240.0,106230.0,0.01427824]
[1748544157293,0.98436037,106240.0,106230.0,0.01427824]
[1748544157522,1.62767064,106240.0,106230.0,0.01427824]
[1748544157745,0.98436037,106240.0,106230.0,0.01427824]
[1748544159968,1.62767064,106240.0,106230.0,0.01427824]
[1748544161502,1.62767064,106240.0,106230.0,0.02309663]
[1748544161725,1.62767064,106240.0,106230.0,0.01427824]
[1748544161950,1.62767064,106240.0,106230.0,0.02309674]
[1748544162176,1.62767064,106240.0,106230.0,0.02309726]
[1748544162428,1.62767064,106240.0,106230.0,0.02309728]
[1748544162645,1.62767064,106240.0,106230.0,0.01427824]
[1748544162862,1.62767064,106240.0,106230.0,0.01227824]
[1748544163082,1.62767064,106240.0,106230.0,0.01327824]
[1748544163948,1.62767064,106240.0,106230.0,0.01027824]
[1748544164372,1.62767064,106240.0,106230.0,0.01127824]
[1748544165872,2.27098091,106240.0,106230.0,0.01127824]
[1748544166311,2.28225891,106240.0,106230.0,0.01127824]
[1748544166792,2.27098091,106240.0,106230.0,0.01027824]
[1748544167017,2.27098091,106240.0,106230.0,0.00927824]
[1748544167235,2.27198091,106240.0,106230.0,0.00927824]
[1748544167467,0.68316037,106240.0,106230.0,0.00927824]
[1748544167684,1.72503064,106240.0,106230.0,0.00927824]
[1748544167914,2.36834091,106240.0,106230.0,0.00927824]
[1748544168364,2.37761891,106240.0,106230.0,0.00927824]
[1748544169633,2.36834091,106240.0,106230.0,0.00927824]
[1748544171144,2.37761891,106240.0,106230.0,0.00927824]
[1748544171808,1.73430864,106240.0,106230.0,0.00927824]
[1748544175786,1.83326864,106240.0,106230.0,0.00927824]
[1748544176007,1.73430864,106240.0,106230.0,0.00927824]
[1748544176478,2.14098864,106240.0,106230.0,0.00927824]
[1748544182568,2.78429891,106240.0,106230.0,0.00927824]
[1748544182784,2.14098864,106240.0,106230.0,0.00927824]
[1748544183238,1.83898864,106240.0,106230.0,0.00927824]
[1748544183454,2.14050864,106240.0,106230.0,0.00927824]
[1748544186408,2.78381891,106240.0,106230.0,0.00927824]
[1748544186911,2.79381891,106240.0,106230.0,0.00927824]
[1748544187203,1.69945292,106240.0,106230.0,0.00927824]
[1748544187433,3.02348548,106240.0,106230.0,0.00927824]
[1748544187654,3.03261513,106240.0,106230.0,0.00927824]
[1748544188792,3.03260669,106240.0,106230.0,0.00927824]
[1748544189004,1.2464352,106230.0,106220.0,0.0001]
[1748544189215,1.33748915,106230.0,106220.0,0.00024686]
[1748544190188,1.34048915,106230.0,106220.0,0.00024686]
[1748544190423,1.34348915,106230.0,106220.0,0.00024686]
[1748544191107,0.79645888,106230.0,106220.0,0.00024686]
[1748544191346,1.74148915,106230.0,106220.0,0.00024686]
[1748544191574,1.34348915,106230.0,106220.0,0.00024686]
[1748544191807,1.72064915,106230.0,106220.0,0.00024686]
[1748544192041,1.74144915,106230.0,106220.0,0.00024686]
[1748544193685,1.09813888,106230.0,106220.0,0.00024686]
[1748544193912,1.74144915,106230.0,106220.0,0.00024686]
[1748544196644,1.09813888,106230.0,106220.0,0.00024686]
[1748544196874,1.74144915,106230.0,106220.0,0.00024686]
[1748544197352,1.32268915,106230.0,106220.0,0.00024686]
[1748544197661,1.72068915,106230.0,106220.0,0.00024686]
[1748544198139,1.74148915,106230.0,106220.0,0.00024686]
[1748544208047,1.43980915,106230.0,106220.0,0.00024686]
[1748544208718,1.74144915,106230.0,106220.0,0.00024686]
[1748544209418,1.43980915,106230.0,106220.0,0.00024686]
[1748544209634,1.74144915,106230.0,106220.0,0.00024686]
[1748544210317,1.83487362,106230.0,106220.0,0.00024686]
[1748544210557,1.43691362,106230.0,106220.0,0.00024686]
[1748544210788,1.8345958,106230.0,106220.0,0.00024686]
[1748544211021,1.74493815,106230.0,106220.0,0.00024686]
[1748544211958,1.34725815,106230.0,106220.0,0.00024686]
[1748544212176,1.74493815,106230.0,106220.0,0.00024686]
[1748544216849,1.80960009,106230.0,106220.0,0.00024686]
[1748544217519,1.74116915,106230.0,106220.0,0.00024686]
[1748544217735,1.80583119,106230.0,106220.0,0.00024686]
[1748544221807,1.80579119,106230.0,106220.0,0.00024686]
[1748544224345,1.80578034,106230.0,106220.0,0.00024686]
[1748544225272,1.74112915,106230.0,106220.0,0.00024686]
[1748544226229,1.80578177,106230.0,106220.0,0.00024686]
[1748544228612,1.80582612,106230.0,106220.0,0.00024686]
[1748544229283,1.80578612,106230.0,106220.0,0.00024686]
[1748544232070,2.12977999,106230.0,106220.0,0.00024686]
[1748544232950,2.1298184,106230.0,106220.0,0.00024686]
[1748544233417,0.69947341,106230.0,106220.0,0.00024686]
[1748544233642,0.69947341,106230.0,106220.0,0.04464686]
[1748544233643,0.7783901,106230.0,106220.0,0.04464686]
[1748544233927,0.39073803,106230.0,106220.0,0.04464686]
[1748544234153,0.29473803,106230.0,106220.0,0.52829893]
[1748544234370,0.59621803,106230.0,106220.0,0.53131154]
[1748544234602,0.29173803,106230.0,106220.0,0.53131154]
[1748544234843,0.59321803,106230.0,106220.0,0.53131154]
[1748544235119,0.59021803,106230.0,106220.0,0.53131154]
[1748544235330,0.59021803,106230.0,106220.0,0.04765947]
[1748544235540,0.59021803,106230.0,106220.0,0.04865947]
[1748544235775,0.28873803,106230.0,106220.0,0.06630024]
[1748544235994,0.59017803,106230.0,106220.0,0.06730029]
[1748544236207,0.28873803,106230.0,106220.0,0.06726454]
[1748544236423,0.60471888,106230.0,106220.0,0.06726454]
[1748544237082,0.30327888,106230.0,106220.0,0.06726413]
[1748544237301,0.60471888,106230.0,106220.0,0.06726413]
[1748544238608,0.30327888,106230.0,106220.0,0.04965906]
[1748544238837,0.30327888,106230.0,106220.0,0.06723864]
[1748544238838,0.60471888,106230.0,106220.0,0.06723864]
[1748544239340,0.24768408,106230.0,106220.0,0.6964316]
[1748544239565,0.24768408,106230.0,106220.0,0.69407808]
[1748544239566,0.19768408,106230.0,106220.0,0.69407808]
[1748544239780,0.19768408,106230.0,106220.0,0.7116502]
[1748544239998,0.24768408,106230.0,106220.0,0.69407808]
[1748544240232,0.20709735,106230.0,106220.0,0.90514139]
[1748544240471,0.20709735,106230.0,106220.0,0.89572724]
[1748544240688,0.19768408,106230.0,106220.0,0.89965981]
[1748544240907,0.18827073,106230.0,106220.0,0.70195311]
[1748544241570,0.18827073,106230.0,106220.0,0.71952297]
[1748544241783,0.18827073,106230.0,106220.0,0.7145904]
[1748544242228,0.18827073,106230.0,106220.0,0.71659043]
[1748544242444,0.18827073,106230.0,106220.0,0.89672341]
[1748544242657,0.18827073,106230.0,106220.0,0.71657189]
[1748544242878,0.18827073,106230.0,106220.0,0.71557189]
[1748544243089,0.18827073,106230.0,106220.0,0.71757189]
[1748544243758,0.18827073,106230.0,106220.0,1.10002054]
[1748544243964,0.18827073,106230.0,106220.0,1.11756999]
[1748544244195,0.18827073,106230.0,106220.0,1.11756322]
[1748544244410,0.18827073,106230.0,106220.0,1.10001377]
[1748544244639,0.18827073,106230.0,106220.0,1.11756323]